bitfinex/quotes_BTCUSD_20220731
["timestamp","ask_amount","ask_price","bid_price","bid_amount"]
[1659310882388,0.55770616,23433.0,23432.0,0.1]
[1659310882654,0.8844428,23433.0,23429.0,0.26354348]
[1659310882870,0.8844428,23433.0,23429.0,0.2509]
[1659310882871,0.42870616,23430.0,23429.0,0.2509]
[1659310883093,0.76411108,23430.0,23429.0,0.2509]
[1659310883314,0.7554428,23430.0,23429.0,0.2509]
[1659310883561,0.42870616,23430.0,23429.0,0.26354348]
[1659310883799,0.42870616,23430.0,23429.0,0.64154348]
[1659310884026,0.08,23430.0,23429.0,0.97749448]
[1659310884481,0.08,23430.0,23429.0,0.39584348]
[1659310884482,0.50870616,23430.0,23429.0,0.39584348]
[1659310884699,0.50870616,23430.0,23429.0,0.26354348]
[1659310885310,0.8854428,23430.0,23429.0,0.26354348]
[1659310885313,0.8054428,23430.0,23429.0,0.26354348]
[1659310885521,0.84878424,23430.0,23429.0,0.2509]
[1659310885932,1.25973524,23430.0,23429.0,0.2509]
[1659310886206,1.30973524,23430.0,23429.0,0.0001]
[1659310886407,1.30973524,23430.0,23428.0,0.14453764]
[1659310886408,0.19665116,23429.0,23428.0,0.1]
[1659310886610,1.28890812,23429.0,23428.0,0.1]
[1659310886755,0.05,23427.0,23426.0,0.0011]
[1659310886969,1.05961054,23427.0,23426.0,0.0011]
[1659310887170,1.05961054,23427.0,23426.0,0.0439]
[1659310887171,0.73264716,23427.0,23426.0,0.0439]
[1659310887385,0.32696338,23429.0,23426.0,0.05654348]
[1659310887593,0.32696338,23429.0,23428.0,0.4823]
[1659310887594,0.42870616,23429.0,23428.0,0.4823]
[1659310887824,0.32696338,23438.0,23428.0,0.818251]
[1659310888032,0.32696338,23438.0,23433.0,0.1]
[1659310888033,0.73264716,23437.0,23433.0,0.1]
[1659310888209,1.10961054,23436.0,23433.0,0.1]
[1659310888431,1.10961054,23436.0,23434.0,0.01264348]
[1659310888432,0.78264716,23435.0,23434.0,0.01264348]
[1659310888681,1.05961054,23435.0,23434.0,0.01264348]
[1659310888905,0.75566954,23435.0,23434.0,0.01264348]
[1659310889177,1.05961054,23435.0,23434.0,0.01264348]
[1659310889402,1.05961054,23435.0,23433.0,0.1]
[1659310889620,1.06827882,23434.0,23433.0,0.1]
[1659310889820,1.11827882,23434.0,23433.0,0.1]
[1659310890232,1.10961054,23434.0,23433.0,0.1]
[1659310890471,1.10961054,23434.0,23433.0,0.15]
[1659310890472,0.73264716,23434.0,23433.0,0.15]
[1659310890669,0.022,23435.0,23433.0,0.15]
[1659310890903,0.022,23435.0,23434.0,0.53204]
[1659310891114,0.022,23435.0,23434.0,0.468281]
[1659310891326,0.022,23435.0,23434.0,0.1323]
[1659310891327,0.42870616,23435.0,23434.0,0.1323]
[1659310891972,0.42870616,23441.0,23434.0,0.1323]
[1659310892185,0.63090438,23440.0,23436.0,0.145]
[1659310892424,0.73264716,23439.0,23436.0,0.145]
[1659310892634,0.42870616,23437.0,23436.0,0.1]
[1659310893009,1.05961054,23437.0,23436.0,0.1]
[1659310893457,0.42870616,23437.0,23436.0,0.1]
[1659310893694,0.73264716,23437.0,23436.0,0.1]
[1659310893913,0.50770616,23437.0,23436.0,0.1]
[1659310894366,0.50770616,23437.0,23436.0,0.16264348]
[1659310894591,0.50770616,23437.0,23436.0,0.46658448]
[1659310894812,0.079,23437.0,23436.0,0.753941]
[1659310895059,0.079,23437.0,23436.0,0.785971]
[1659310895286,1.1261,23447.0,23436.0,0.785971]
[1659310895549,0.42870616,23437.0,23436.0,0.15]
[1659310895772,0.42870616,23437.0,23436.0,0.1]
[1659310896704,0.73264716,23437.0,23436.0,0.1]
[1659310896931,0.97102493,23437.0,23436.0,0.1]
[1659310897393,0.96602493,23437.0,23436.0,0.1]
[1659310897837,0.96602493,23437.0,23436.0,0.16254959]
[1659310898736,0.96102493,23437.0,23436.0,0.16254959]
[1659310899431,0.96102493,23437.0,23436.0,0.11254959]
[1659310899658,1.00436637,23437.0,23436.0,0.11254959]
[1659310899872,1.26496593,23437.0,23436.0,0.11254959]
[1659310900344,1.31496593,23437.0,23436.0,0.11254959]
[1659310900778,1.35830737,23437.0,23436.0,0.1]
[1659310900782,1.35830737,23437.0,23432.0,0.1]
[1659310900783,1.40830737,23437.0,23432.0,0.1]
[1659310901010,0.42870616,23434.0,23432.0,0.1]
[1659310901237,0.45059216,23433.0,23432.0,0.1]
[1659310901451,0.91397148,23433.0,23432.0,0.1]
[1659310901692,0.96397148,23433.0,23432.0,0.1]
[1659310901959,0.96397148,23433.0,23426.0,0.0011]
[1659310901960,1.05,23432.0,23426.0,0.0011]
[1659310902195,0.57535732,23427.0,23426.0,0.0011]
[1659310903106,0.62535732,23427.0,23426.0,0.0011]
[1659310903318,0.92929832,23427.0,23426.0,0.0011]
[1659310903538,0.96397148,23427.0,23426.0,0.0011]
[1659310903981,0.90429832,23427.0,23426.0,0.0011]
[1659310904226,0.95429832,23427.0,23426.0,0.0011]
[1659310904479,0.98897148,23427.0,23426.0,0.0011]
[1659310904709,0.99763976,23427.0,23426.0,0.0011]
[1659310905372,0.97263976,23427.0,23426.0,0.0011]
[1659310905842,0.40181,23426.0,23425.0,0.001]
[1659310906077,1.16650716,23426.0,23425.0,0.001]
[1659310906308,1.16650716,23426.0,23413.0,0.0011]
[1659310906309,0.05,23423.0,23413.0,0.0011]
[1659310906530,0.42870616,23416.0,23413.0,0.0011]
[1659310906761,0.32633016,23415.0,23413.0,0.0011]
[1659310907001,0.46337932,23414.0,23413.0,0.0011]
[1659310907209,0.42870616,23414.0,23413.0,0.0011]
[1659310908469,0.75503632,23414.0,23413.0,0.0011]
[1659310908568,0.42870616,23414.0,23413.0,0.0011]
[1659310908804,0.42870616,23414.0,23412.0,0.0989]
[1659310908805,1.44846116,23413.0,23412.0,0.0989]
[1659310909029,2.21317832,23413.0,23410.0,0.101]
[1659310909255,0.57535732,23411.0,23410.0,0.101]
[1659310909500,1.20562848,23411.0,23410.0,0.101]
[1659310909734,1.25562848,23411.0,23410.0,0.101]
[1659310909976,1.36669848,23411.0,23410.0,0.101]
[1659310910899,1.33462848,23411.0,23410.0,0.0001]
[1659310911125,0.95829832,23411.0,23410.0,0.0001]
[1659310911362,0.87929832,23411.0,23410.0,0.0001]
[1659310911806,0.92929832,23411.0,23410.0,0.0001]
[1659310912056,1.00229832,23411.0,23410.0,0.0001]
[1659310912537,0.95229832,23411.0,23410.0,0.0001]
[1659310912764,0.64835732,23411.0,23410.0,0.0001]
[1659310913227,0.57535732,23411.0,23410.0,0.0001]
[1659310913714,0.42870616,23411.0,23410.0,0.0001]
[1659310913944,0.46670616,23411.0,23410.0,0.0429]
[1659310914399,0.46670616,23411.0,23410.0,0.0001]
[1659310915318,0.0007,23409.0,23407.0,0.0021]
[1659310915551,0.42870616,23408.0,23407.0,0.0021]
[1659310915776,1.05834724,23408.0,23407.0,0.0021]
[1659310916555,0.73264716,23408.0,23407.0,0.0021]
[1659310916778,0.42870616,23408.0,23407.0,0.0021]
[1659310917257,0.73264716,23408.0,23407.0,0.0021]
[1659310917498,0.42870616,23408.0,23407.0,0.07697]
[1659310917755,0.03206,23418.0,23407.0,0.07697]
[1659310917756,0.32570008,23418.0,23407.0,0.388111]
[1659310917999,0.42870616,23417.0,23414.0,0.2323]
[1659310918222,0.42870616,23415.0,23414.0,0.2323]
[1659310918458,1.05834724,23415.0,23414.0,0.1]
[1659310920088,1.13634724,23415.0,23414.0,0.1]
[1659310921004,1.13634724,23415.0,23414.0,0.11264348]
[1659310921005,0.81064716,23415.0,23414.0,0.11264348]
[1659310921453,0.81064716,23415.0,23414.0,0.1]
[1659310921454,0.73264716,23415.0,23414.0,0.1]
[1659310921675,0.42870616,23415.0,23414.0,2.31864013]
[1659310922139,0.45370616,23415.0,23414.0,2.31864013]
[1659310923264,0.42870616,23415.0,23414.0,2.31864013]
[1659310925858,0.75440624,23415.0,23414.0,2.31864013]
[1659310926083,0.82140624,23415.0,23414.0,2.31864013]
[1659310927221,0.75440624,23415.0,23414.0,2.31864013]
[1659310927570,0.75440624,23415.0,23414.0,2.33128361]
[1659310927892,0.42870616,23415.0,23414.0,2.33128361]
[1659310928106,0.44770616,23415.0,23414.0,2.33128361]
[1659310928322,0.44770616,23415.0,23414.0,2.38128361]
[1659310928543,0.44770616,23415.0,23414.0,2.33128361]
[1659310928799,0.44770616,23415.0,23414.0,2.38128361]
[1659310928989,0.44770616,23415.0,23414.0,2.33128361]
[1659310929241,0.42870616,23415.0,23414.0,2.33128361]
[1659310929475,0.42870616,23415.0,23414.0,2.38128361]
[1659310930176,0.44770616,23415.0,23414.0,2.38128361]
[1659310931324,0.42870616,23415.0,23414.0,2.38128361]
[1659310931615,0.42870616,23415.0,23414.0,2.36864013]
[1659310931936,0.44770616,23415.0,23414.0,2.36864013]
[1659310933076,0.4910476,23415.0,23414.0,2.31864013]
[1659310933277,0.44770616,23415.0,23414.0,2.33128361]
[1659310933705,0.42870616,23415.0,23414.0,2.33128361]
[1659310933952,0.46070616,23415.0,23414.0,2.33128361]
[1659310934384,0.46070616,23415.0,23414.0,2.38128361]
[1659310935060,0.46070616,23415.0,23414.0,3.16752461]
[1659310935320,0.0005,23417.0,23414.0,3.14958461]
[1659310935526,0.42870616,23416.0,23415.0,0.03206]
[1659310935740,0.42870616,23416.0,23415.0,0.303941]
[1659310935957,0.42870616,23416.0,23415.0,0.05544348]
[1659310936807,0.42870616,23416.0,23415.0,0.01264348]
[1659310936808,0.75440624,23416.0,23415.0,0.01264348]
[1659310937016,0.75440624,23416.0,23414.0,2.31864013]
[1659310937017,0.79774768,23416.0,23414.0,2.31864013]
[1659310937241,0.75440624,23415.0,23414.0,2.31864013]
[1659310937671,0.42870616,23415.0,23414.0,2.33128361]
[1659310937874,0.42870616,23415.0,23414.0,2.40928361]
[1659310938702,0.42870616,23415.0,23414.0,2.45928361]
[1659310939167,0.42870616,23415.0,23414.0,2.38128361]
[1659310940008,0.50770616,23415.0,23414.0,2.38128361]
[1659310940251,0.50763307,23415.0,23414.0,2.38128361]
[1659310940458,0.55097451,23415.0,23414.0,2.33128361]
[1659310940694,0.50763307,23415.0,23414.0,2.33128361]
[1659310941142,0.42863307,23415.0,23414.0,2.33128361]
[1659310941773,0.42863307,23415.0,23414.0,2.38128361]
[1659310942010,0.50763307,23415.0,23414.0,2.38128361]
[1659310942438,0.50763307,23415.0,23414.0,2.68522461]
[1659310943497,0.42863307,23415.0,23414.0,2.38128361]
[1659310943710,0.42863307,23415.0,23414.0,2.68128361]
[1659310944188,0.42863307,23415.0,23414.0,2.75928361]
[1659310944426,0.42863307,23415.0,23414.0,2.45928361]
[1659310945306,0.42863307,23415.0,23414.0,2.38128361]
[1659310945962,0.42863307,23415.0,23414.0,2.45928361]
[1659310946160,0.42863307,23415.0,23414.0,2.44664013]
[1659310946390,0.75433315,23415.0,23414.0,2.45928361]
[1659310946632,0.75433315,23415.0,23414.0,2.44664013]
[1659310947259,0.75433315,23415.0,23414.0,2.36864013]
[1659310947706,0.75483315,23415.0,23414.0,2.36864013]
[1659310948125,0.83383315,23415.0,23414.0,2.36864013]
[1659310949243,0.75483315,23415.0,23414.0,2.36864013]
[1659310949923,0.43113307,23415.0,23414.0,2.69864013]
[1659310950153,0.43113307,23415.0,23414.0,3.0294008]
[1659310950382,0.43113307,23415.0,23414.0,3.01675732]
[1659310951082,0.43113307,23415.0,23414.0,2.71675732]
[1659310951754,0.43113307,23415.0,23414.0,3.01675732]
[1659310951969,0.42913307,23415.0,23414.0,3.06575732]
[1659310953169,0.42913307,23415.0,23414.0,3.11575732]
[1659310953369,0.42913307,23415.0,23414.0,3.27894595]
[1659310953598,0.0005,23415.0,23414.0,3.0814608]
[1659310953817,0.0005,23417.0,23415.0,0.3624013]
[1659310954038,0.0005,23417.0,23415.0,0.1490763]
[1659310954039,0.42870616,23416.0,23415.0,0.1490763]
[1659310954273,0.42870616,23416.0,23415.0,0.94819213]
[1659310954560,0.42870616,23416.0,23415.0,0.6340173]
[1659310954774,0.42870616,23416.0,23415.0,0.99819153]
[1659310955234,0.42870616,23416.0,23415.0,0.64819153]
[1659310955474,0.42870616,23416.0,23415.0,0.6340173]
[1659310956177,0.42870616,23416.0,23415.0,0.7130173]
[1659310956626,0.42870616,23416.0,23415.0,0.7630173]
[1659310956863,0.42870616,23416.0,23415.0,1.0630173]
[1659310957084,0.42870616,23416.0,23415.0,1.0772013]
[1659310957311,0.0005,23417.0,23416.0,1.1]
[1659310957581,0.0005,23417.0,23416.0,1.80145931]
[1659310957811,0.42870616,23421.0,23416.0,1.91947348]
[1659310957812,0.37920616,23421.0,23416.0,1.91947348]
[1659310958042,0.0005,23422.0,23420.0,0.131]
[1659310958299,0.0005,23422.0,23421.0,0.539034]
[1659310958530,0.0005,23422.0,23421.0,0.356984]
[1659310958768,0.42920616,23422.0,23421.0,0.603941]
[1659310959001,0.42920616,23422.0,23421.0,0.3]
[1659310959235,0.42920616,23422.0,23420.0,0.231]
[1659310959463,0.42870616,23421.0,23420.0,0.181]
[1659310959708,0.42870616,23421.0,23420.0,0.484941]
[1659310960174,0.75327556,23421.0,23420.0,0.481]
[1659310960410,0.75327556,23421.0,23420.0,0.181]
[1659310960903,0.75327556,23421.0,23418.0,0.1]
[1659310961120,0.42870616,23420.0,23418.0,0.1]
[1659310961371,0.47535732,23420.0,23418.0,0.1]
[1659310961588,0.47870616,23419.0,23418.0,0.1]
[1659310962062,0.47870616,23419.0,23418.0,0.119]
[1659310962279,0.75327556,23419.0,23418.0,0.42284371]
[1659310962529,0.42870616,23419.0,23418.0,0.46890271]
[1659310962943,0.42870616,23419.0,23418.0,0.77284371]
[1659310963168,0.75327556,23419.0,23418.0,0.42284371]
[1659310963444,0.75327556,23419.0,23418.0,0.09990271]
[1659310963683,0.75327556,23419.0,23415.0,0.08704576]
[1659310963917,0.42870616,23418.0,23415.0,0.08704576]
[1659310964155,0.3245694,23417.0,23415.0,0.08704576]
[1659310964379,0.42870616,23416.0,23415.0,0.08704576]
[1659310964612,0.47870616,23416.0,23415.0,0.08704576]
[1659310965304,0.42870616,23416.0,23415.0,0.08704576]
[1659310965755,0.42870616,23416.0,23415.0,0.38704576]
[1659310966062,0.42870616,23416.0,23415.0,0.69098676]
[1659310966289,0.42870616,23416.0,23415.0,0.38704576]
[1659310966513,0.42870616,23416.0,23415.0,0.13704576]
[1659310966731,0.42870616,23416.0,23415.0,0.43704576]
[1659310968066,0.42870616,23416.0,23415.0,0.74098676]
[1659310970490,0.42870616,23416.0,23415.0,0.39098676]
[1659310971823,0.42870616,23416.0,23415.0,0.74098676]
[1659310972537,0.42870616,23416.0,23415.0,0.43704576]
[1659310972739,0.42870616,23416.0,23415.0,0.79098676]
[1659310972860,0.42870616,23416.0,23415.0,0.87328676]
[1659310973059,0.42870616,23416.0,23415.0,0.93746363]
[1659310973279,0.42870616,23416.0,23415.0,16.27011211]
[1659310973482,0.42870616,23419.0,23415.0,16.27011211]
[1659310973695,0.42870616,23419.0,23418.0,0.1323]
[1659310973907,0.42870616,23419.0,23418.0,0.1823]
[1659310974115,0.42870616,23419.0,23418.0,0.486241]
[1659310974336,0.42870616,23419.0,23418.0,0.786241]
[1659310975383,0.42870616,23419.0,23418.0,0.836241]
[1659310975610,0.46337932,23419.0,23418.0,0.4823]
[1659310975825,0.51637444,23419.0,23418.0,0.4823]
[1659310976028,0.50770616,23419.0,23418.0,0.4823]
[1659310976886,0.50770616,23419.0,23418.0,0.1823]
[1659310977291,0.42870616,23419.0,23418.0,0.1823]
[1659310977501,0.4720476,23419.0,23418.0,0.1823]
[1659310977748,0.42870616,23419.0,23418.0,0.1823]
[1659310977938,0.50770616,23419.0,23418.0,0.1823]
[1659310979366,0.42870616,23419.0,23418.0,0.1823]
[1659310980023,0.50770616,23419.0,23418.0,0.1823]
[1659310981343,0.42870616,23419.0,23418.0,0.1823]
[1659310981572,0.42920616,23419.0,23418.0,0.1823]
[1659310982035,0.50820616,23419.0,23417.0,15.0]
[1659310982259,0.50820616,23419.0,23415.0,0.26191494]
[1659310982260,0.47870616,23418.0,23415.0,0.05530272]
[1659310982492,0.57535732,23416.0,23415.0,0.05530272]
[1659310983434,0.57525143,23416.0,23415.0,0.05530272]
[1659310983661,0.42860027,23416.0,23415.0,0.05530272]
[1659310983913,0.42860027,23416.0,23415.0,0.35530272]
[1659310984140,0.50660027,23416.0,23415.0,0.35530272]
[1659310985489,0.42860027,23416.0,23415.0,0.35530272]
[1659310985721,0.42860027,23416.0,23415.0,0.89124372]
[1659310985947,0.50760027,23416.0,23415.0,0.89124372]
[1659310986649,0.55094171,23416.0,23415.0,2.50249807]
[1659310986898,0.50760027,23416.0,23415.0,2.37049807]
[1659310987339,0.75316967,23416.0,23415.0,2.37049807]
[1659310987564,0.42860027,23416.0,23415.0,2.37049807]
[1659310988039,0.83216967,23416.0,23415.0,2.37049807]
[1659310989445,0.75316967,23416.0,23415.0,2.37049807]
[1659310989675,0.75316967,23416.0,23415.0,2.67049807]
[1659310990113,0.81716967,23416.0,23415.0,2.72049807]
[1659310990591,0.81716967,23416.0,23415.0,2.67049807]
[1659310990808,0.81716967,23416.0,23415.0,2.72049807]
[1659310991056,0.49260027,23416.0,23415.0,2.67049807]
[1659310991290,0.42860027,23416.0,23415.0,2.67049807]
[1659310991765,0.75316967,23416.0,23415.0,2.67049807]
[1659310991998,0.49260027,23416.0,23415.0,2.67049807]
[1659310992216,0.49260027,23416.0,23415.0,2.72049807]
[1659310993355,0.42860027,23416.0,23415.0,2.72049807]
[1659310994217,0.48760027,23416.0,23415.0,2.72049807]
[1659310994671,0.53094171,23416.0,23415.0,2.72049807]
[1659310994908,0.81216967,23416.0,23415.0,2.67049807]
[1659310995138,0.96888467,23416.0,23415.0,0.0424133]
[1659310995364,1.39582967,23416.0,23415.0,0.0424133]
[1659310995635,0.19665116,23415.0,23414.0,0.1]
[1659310995869,1.73633198,23415.0,23414.0,0.1]
[1659310996091,1.43239098,23415.0,23414.0,0.1]
[1659310997010,1.73633198,23415.0,23414.0,0.1]
[1659310997698,1.43239098,23415.0,23414.0,0.1]
[1659310998892,1.95556149,23415.0,23414.0,0.1]
[1659310999122,2.25950249,23415.0,23414.0,0.1]
[1659311001873,2.22744249,23415.0,23414.0,0.1]
[1659311002087,0.87929832,23415.0,23414.0,0.1]
[1659311002320,0.42870616,23415.0,23414.0,0.11264348]
[1659311005553,0.42870616,23415.0,23414.0,0.1]
[1659311006476,0.4720476,23415.0,23414.0,0.1]
[1659311007350,0.42870616,23415.0,23414.0,0.1]
[1659311007545,0.4720476,23415.0,23414.0,0.1]
[1659311007655,0.42870616,23415.0,23414.0,0.1]
[1659311008574,0.4720476,23415.0,23414.0,0.1]
[1659311011151,0.42870616,23415.0,23414.0,0.1]
[1659311014708,0.4720476,23415.0,23414.0,0.1]
[1659311015598,0.42870616,23415.0,23414.0,0.1]
[1659311015814,0.4720476,23415.0,23414.0,0.1]
[1659311016038,0.42870616,23415.0,23414.0,0.1]
[1659311016700,0.4720476,23415.0,23414.0,0.1]
[1659311017169,0.9236476,23415.0,23414.0,0.1]
[1659311017465,1.2275886,23415.0,23414.0,0.1]
[1659311017683,0.05,23412.0,23410.0,0.00091507]
[1659311017907,0.93984882,23411.0,23410.0,0.00091507]
[1659311018129,1.69538982,23411.0,23410.0,0.00091507]
[1659311018583,1.39144882,23411.0,23410.0,0.00091507]
[1659311019023,0.93984882,23411.0,23410.0,0.00091507]
[1659311020214,0.57535732,23411.0,23410.0,0.04371507]
[1659311020684,0.42870616,23411.0,23410.0,0.04371507]
[1659311020923,0.42870616,23411.0,23410.0,0.05635855]
[1659311021648,0.42870616,23411.0,23410.0,0.00091507]
[1659311023207,0.74985622,23411.0,23410.0,0.00091507]
[1659311025568,0.79319766,23411.0,23410.0,0.00091507]
[1659311025788,0.74985622,23411.0,23410.0,0.00091507]
[1659311028543,0.42870616,23411.0,23410.0,0.00091507]
[1659311029019,0.79319766,23411.0,23410.0,0.00091507]
[1659311029262,0.74985622,23411.0,23410.0,0.00091507]
[1659311031309,0.42870616,23411.0,23410.0,0.00091507]
[1659311032892,0.46337932,23411.0,23410.0,0.00091507]
[1659311033086,0.42870616,23411.0,23410.0,0.00091507]
[1659311033853,0.4720476,23411.0,23410.0,0.00091507]
[1659311034071,0.79319766,23411.0,23410.0,0.00091507]
[1659311034298,0.74985622,23411.0,23410.0,0.00091507]
[1659311034731,0.42870616,23411.0,23410.0,0.00091507]
[1659311036106,0.82885622,23411.0,23410.0,0.00091507]
[1659311037028,0.50770616,23411.0,23410.0,0.00091507]
[1659311037458,0.42870616,23411.0,23410.0,0.00091507]
[1659311037882,0.47970616,23411.0,23410.0,0.00091507]
[1659311038724,0.47970616,23411.0,23409.0,0.776899]
[1659311038949,0.42870616,23410.0,23409.0,0.776899]
[1659311039163,0.42870616,23410.0,23409.0,0.826899]
[1659311039453,0.42870616,23410.0,23409.0,0.83954248]
[1659311039677,0.42870616,23410.0,23409.0,0.78954248]
[1659311039901,0.47370616,23410.0,23409.0,0.78954248]
[1659311040577,0.47370616,23410.0,23409.0,0.68281848]
[1659311040800,0.47370616,23410.0,23409.0,0.33281848]
[1659311041234,0.42870616,23410.0,23409.0,0.33281848]
[1659311041921,0.50670616,23410.0,23409.0,0.33281848]
[1659311042128,0.50670616,23410.0,23409.0,0.68281848]
[1659311042993,0.50670616,23410.0,23409.0,0.67781848]
[1659311043330,0.42870616,23410.0,23409.0,0.67781848]
[1659311043968,0.45070616,23410.0,23409.0,0.67781848]
[1659311045024,0.45070616,23410.0,23409.0,0.98175948]
[1659311045227,0.42870616,23410.0,23409.0,0.67781848]
[1659311045448,0.42870616,23410.0,23409.0,0.98175948]
[1659311045825,0.42870616,23410.0,23409.0,0.67781848]
[1659311046037,0.45070616,23410.0,23409.0,0.67781848]
[1659311046888,0.77185622,23410.0,23409.0,0.67781848]
[1659311047310,0.74985622,23410.0,23409.0,0.320175]
[1659311047758,0.4720476,23410.0,23409.0,0.320175]
[1659311047979,0.5510476,23410.0,23409.0,0.10673]
[1659311048470,0.50770616,23410.0,23409.0,0.10673]
[1659311049159,0.82885622,23410.0,23409.0,0.10673]
[1659311049854,0.74985622,23410.0,23409.0,0.10673]
[1659311050083,0.82885622,23410.0,23408.0,0.04287061]
[1659311050318,0.53545416,23409.0,23408.0,0.04287061]
[1659311050546,0.85660422,23409.0,23408.0,0.14961661]
[1659311051042,0.85660422,23409.0,23408.0,0.04287061]
[1659311051922,0.89994566,23409.0,23408.0,0.04287061]
[1659311052147,0.97894566,23409.0,23408.0,0.04287061]
[1659311052375,0.97894566,23409.0,23407.0,0.158851]
[1659311052608,0.89650738,23408.0,23407.0,0.158851]
[1659311053518,0.42870616,23408.0,23407.0,0.158851]
[1659311053955,0.50670616,23408.0,23407.0,0.158851]
[1659311055371,0.42870616,23408.0,23407.0,0.158851]
[1659311056056,0.5140476,23408.0,23407.0,0.158851]
[1659311056268,0.47070616,23408.0,23407.0,0.158851]
[1659311057867,0.42870616,23408.0,23407.0,0.158851]
[1659311058094,0.82885622,23408.0,23407.0,0.158851]
[1659311058797,0.87219766,23408.0,23407.0,0.108851]
[1659311059467,0.79319766,23408.0,23407.0,0.108851]
[1659311059685,0.79319766,23408.0,23407.0,0.0021]
[1659311060146,0.87219766,23408.0,23407.0,0.0021]
[1659311061061,0.50770616,23408.0,23407.0,0.0449]
[1659311061282,0.42870616,23408.0,23407.0,0.0021]
[1659311061949,0.50670616,23408.0,23407.0,0.0021]
[1659311062180,0.49670616,23408.0,23407.0,0.0021]
[1659311062753,0.81785622,23408.0,23407.0,0.0021]
[1659311063297,0.73985622,23408.0,23407.0,0.0021]
[1659311064020,0.81885622,23408.0,23407.0,0.0021]
[1659311064681,0.86219766,23408.0,23407.0,0.0021]
[1659311065347,0.78319766,23408.0,23407.0,0.0021]
[1659311065568,0.73985622,23408.0,23407.0,0.0021]
[1659311066009,0.81885622,23408.0,23407.0,0.0021]
[1659311067329,0.73985622,23408.0,23407.0,0.0021]
[1659311068035,0.81885622,23408.0,23407.0,0.0021]
[1659311069198,0.86219766,23408.0,23407.0,0.0021]
[1659311069421,0.78319766,23408.0,23407.0,0.0021]
[1659311069637,0.73985622,23408.0,23407.0,0.0021]
[1659311070099,0.81885622,23408.0,23407.0,0.0021]
[1659311071289,1.12279722,23408.0,23407.0,0.0021]
[1659311072406,1.17279722,23408.0,23407.0,0.0021]
[1659311072635,1.12279722,23408.0,23407.0,0.0021]
[1659311073104,0.81885622,23408.0,23407.0,0.0449]
[1659311073326,0.72264716,23408.0,23407.0,0.0449]
[1659311073763,0.41870616,23408.0,23407.0,0.0021]
[1659311074015,0.76464716,23408.0,23407.0,0.0021]
[1659311074258,0.46070616,23408.0,23407.0,0.0449]
[1659311075156,0.46070616,23408.0,23407.0,0.1765]
[1659311075440,0.46070616,23408.0,23407.0,0.22841348]
[1659311075441,0.41870616,23408.0,23407.0,0.22841348]
[1659311075663,0.41870616,23408.0,23407.0,0.53235448]
[1659311075893,0.41870616,23408.0,23407.0,0.49634348]
[1659311076122,0.49770616,23408.0,23407.0,0.49634348]
[1659311076331,0.49770616,23408.0,23407.0,0.80028448]
[1659311076545,0.49770616,23408.0,23407.0,0.49634348]
[1659311077223,0.49770616,23408.0,23407.0,0.4837]
[1659311077446,0.49770616,23408.0,23407.0,0.0521]
[1659311077656,0.49770616,23408.0,23407.0,0.0021]
[1659311077915,0.73985622,23408.0,23407.0,0.0021]
[1659311078128,0.81885622,23408.0,23407.0,0.0021]
[1659311079317,1.31884111,23408.0,23407.0,0.0021]
[1659311079544,1.62278211,23408.0,23407.0,0.0021]
[1659311079994,1.70178211,23408.0,23407.0,0.0021]
[1659311081144,1.12279722,23408.0,23407.0,0.0021]
[1659311081380,1.04379722,23408.0,23407.0,0.0021]
[1659311081619,1.04379722,23408.0,23404.0,0.001]
[1659311081620,0.0011,23407.0,23404.0,0.001]
[1659311081841,1.02695732,23405.0,23404.0,0.001]
[1659311082080,1.65204838,23405.0,23404.0,0.001]
[1659311082517,0.5990507,23404.0,23396.0,0.001]
[1659311082736,0.72870616,23397.0,23396.0,0.001]
[1659311083257,0.72870616,23397.0,23396.0,0.01374223]
[1659311083480,0.42870616,23397.0,23396.0,0.001]
[1659311083946,0.50770616,23397.0,23396.0,0.001]
[1659311084166,0.81164716,23397.0,23396.0,0.001]
[1659311084388,0.50770616,23397.0,23396.0,0.001]
[1659311084658,0.81164716,23397.0,23396.0,0.001]
[1659311084881,0.50770616,23397.0,23396.0,0.001]
[1659311085335,0.7759886,23397.0,23396.0,0.001]
[1659311085566,0.42870616,23397.0,23396.0,0.001]
[1659311086053,0.50770616,23397.0,23396.0,0.001]
[1659311087001,0.81164716,23397.0,23396.0,0.001]
[1659311087235,0.42870616,23397.0,23396.0,0.001]
[1659311087666,1.12327425,23397.0,23396.0,0.001]
[1659311088112,1.20227425,23397.0,23396.0,0.001]
[1659311088663,1.20227425,23397.0,23396.0,0.0438]
[1659311088879,1.20227425,23397.0,23396.0,0.05644348]
[1659311089103,1.20227425,23397.0,23396.0,0.36038448]
[1659311089335,1.12327425,23397.0,23396.0,0.71038448]
[1659311090015,1.20127425,23397.0,23396.0,0.71038448]
[1659311090252,1.24461569,23397.0,23396.0,0.70538448]
[1659311090489,1.20127425,23397.0,23396.0,0.70538448]
[1659311091221,1.20127425,23397.0,23396.0,0.73747448]
[1659311091448,1.12327425,23397.0,23396.0,0.73747448]
[1659311091920,1.48776575,23397.0,23396.0,0.36219595]
[1659311092150,1.56676575,23397.0,23396.0,0.001]
[1659311092379,1.87070675,23397.0,23396.0,0.001]
[1659311093293,1.79170675,23397.0,23396.0,0.001]
[1659311093542,1.47055669,23397.0,23396.0,0.001]
[1659311093764,1.52055669,23397.0,23396.0,0.001]
[1659311093982,1.59855669,23397.0,23396.0,0.001]
[1659311095399,1.52055669,23397.0,23396.0,0.001]
[1659311095860,1.47055669,23397.0,23396.0,0.001]
[1659311096138,1.54855669,23397.0,23396.0,0.001]
[1659311096594,1.50521525,23397.0,23396.0,0.0438]
[1659311096833,1.20127425,23397.0,23396.0,0.1754]
[1659311097073,1.20127425,23397.0,23396.0,0.23804348]
[1659311097300,1.12327425,23397.0,23396.0,0.27013348]
[1659311097531,1.12327425,23397.0,23396.0,0.54198448]
[1659311097775,1.12327425,23397.0,23396.0,0.87407448]
[1659311098017,1.20227425,23397.0,23396.0,0.87407448]
[1659311098484,1.20227425,23397.0,23396.0,0.84198448]
[1659311098988,1.20227425,23397.0,23396.0,0.736541]
[1659311099209,1.20227425,23397.0,23396.0,0.4326]
[1659311099210,1.52342431,23397.0,23396.0,0.4326]
[1659311099458,1.52342431,23397.0,23396.0,0.001]
[1659311099459,1.44442431,23397.0,23396.0,0.001]
[1659311100103,1.56676575,23397.0,23396.0,0.001]
[1659311100334,1.87070675,23397.0,23396.0,0.001]
[1659311100563,0.59825116,23395.0,23394.0,0.0011]